bitfinex-derivatives/quotes_SOLF0:USTF0_20260102
["timestamp","ask_amount","ask_price","bid_price","bid_amount"]
[1767324170134,1.53876966,127.31,127.25,11.09342891]
[1767324170332,0.0527231,127.3,127.25,11.09342891]
[1767324177140,0.0527231,127.3,127.25,4.01222891]
[1767324179244,0.0527231,127.3,127.25,13.46173238]
[1767324180937,0.0527231,127.3,127.26,3.83116735]
[1767324185044,1.53876966,127.33,127.27,3.83116735]
[1767324185239,4.03568096,127.33,127.27,3.83116735]
[1767324185439,5.57445062,127.33,127.27,3.83116735]
[1767324186241,0.05482401,127.31,127.29,0.0527231]
[1767324197357,0.05482401,127.31,127.27,3.83116735]
[1767324197861,4.09050497,127.31,127.26,9.44950347]
[1767324198161,4.09050497,127.31,127.26,13.28067082]
[1767324199964,4.09050497,127.31,127.24,13.28067082]
[1767324199965,4.03568096,127.29,127.24,13.28067082]
[1767324200152,0.05690965,127.28,127.23,9.44950347]
[1767324200853,6.49612119,127.28,127.23,9.44950347]
[1767324201154,6.49612119,127.28,127.22,13.28067082]
[1767324202060,6.49612119,127.28,127.22,3.83116735]
[1767324206364,13.57632119,127.28,127.22,3.83116735]
[1767324208062,3.92182936,127.27,127.22,3.83116735]
[1767324213762,3.92182936,127.26,127.19,13.4420881]
[1767324213966,0.05547205,127.24,127.19,13.4420881]
[1767324214160,0.05547205,127.24,127.19,3.99258463]
[1767324225375,3.97730141,127.24,127.19,3.99258463]
[1767324231791,3.97730141,127.24,127.19,11.20922732]
[1767324234882,3.97730141,127.24,127.19,3.99258463]
[1767324235086,3.97730141,127.24,127.19,11.20922732]
[1767324236488,3.97730141,127.24,127.19,3.99258463]
[1767324237490,11.05970141,127.24,127.19,3.99258463]
[1767324238181,4.01551006,127.23,127.17,7.21664269]
[1767324238385,0.05401218,127.21,127.17,11.38084127]
[1767324238585,0.05401218,127.21,127.17,4.16419858]
[1767324240483,0.05401218,127.21,127.17,11.38084127]
[1767324240879,0.05401218,127.21,127.17,4.16419858]
[1767324241792,7.13821218,127.21,127.17,4.16419858]
[1767324245587,11.15372224,127.21,127.16,7.21664269]
[1767324245780,11.15372224,127.21,127.15,11.38084127]
[1767324246688,11.10031006,127.2,127.15,11.38084127]
[1767324247694,11.10031006,127.2,127.15,7.21664269]
[1767324248895,4.01551006,127.19,127.15,7.21664269]
[1767324249097,0.05300919,127.18,127.15,7.21664269]
[1767324249283,0.05300919,127.18,127.14,4.16419858]
[1767324249284,0.05300919,127.18,127.14,11.38084127]
[1767324252399,11.15431925,127.18,127.14,7.21664269]
[1767324252597,4.01551006,127.17,127.11,9.44950347]
[1767324252799,0.05128513,127.15,127.1,8.64234153]
[1767324254596,0.05128513,127.15,127.1,12.80654011]
[1767324255796,0.05128513,127.15,127.11,4.16419858]
[1767324259601,7.13878513,127.15,127.1,8.64234153]
[1767324259902,5.60898438,127.15,127.1,8.64234153]
[1767324261007,7.088,127.14,127.1,8.64234153]
[1767324263606,0.05128513,127.15,127.11,3.96076186]
[1767324274610,11.0453686,127.15,127.1,8.64234153]
[1767324275117,11.0453686,127.15,127.1,12.53222781]
[1767324277029,12.53687266,127.14,127.1,8.64234153]
[1767324277923,8.63028919,127.14,127.1,12.53222781]
[1767324278421,7.0881,127.14,127.1,12.53222781]
[1767324283328,7.0881,127.14,127.11,3.88988628]
[1767324287432,7.0881,127.14,127.1,8.64234153]
[1767324288136,7.0881,127.14,127.11,3.88988628]
[1767324292738,0.05128513,127.15,127.11,3.88988628]
[1767324295847,0.05128513,127.15,127.11,13.33938975]
[1767324296147,3.90658347,127.18,127.12,3.98352914]
[1767324297247,3.90658347,127.18,127.14,0.05128513]
[1767324297248,0.05904258,127.16,127.14,0.05128513]
[1767324301347,7.14584258,127.16,127.14,0.05128513]
[1767324301543,7.14584258,127.16,127.12,3.98352914]
[1767324306350,0.05904258,127.16,127.12,3.98352914]
[1767324306554,0.05904258,127.16,127.12,13.43303261]
[1767324306947,7.0849,127.2,127.14,3.98352914]
[1767324307343,8.62708919,127.2,127.14,3.98352914]
[1767324307853,12.55894928,127.2,127.14,3.98352914]
[1767324308051,0.05062645,127.18,127.16,0.05792942]
[1767324332973,11.27037944,127.22,127.17,3.78037766]
[1767324333173,104.21037944,127.22,127.17,3.78037766]
[1767324333974,0.05573553,127.21,127.17,3.78037766]
[1767324334275,4.18657944,127.2,127.16,0.05792942]
[1767324335768,11.27127944,127.2,127.16,0.05792942]
[1767324341773,4.18657944,127.19,127.16,0.05792942]
[1767324348082,4.18657944,127.19,127.16,7.27970784]
[1767324357684,4.18657944,127.19,127.16,0.05792942]
[1767324357882,4.18657944,127.19,127.16,7.27970784]
[1767324363187,4.18657944,127.19,127.16,0.05792942]
[1767324363582,4.18657944,127.19,127.16,7.27970784]
[1767324366493,4.18657944,127.19,127.16,7.31316075]
[1767324367893,100.0247,127.2,127.16,7.31316075]
[1767324368194,104.0722959,127.2,127.16,7.31316075]
[1767324370090,96.9875959,127.2,127.16,7.31316075]
[1767324370895,96.9875959,127.2,127.17,7.25523133]
[1767324374701,92.94,127.2,127.17,7.25523133]
[1767324375705,27.6875959,127.26,127.2,4.08104993]
[1767324375899,4.0475959,127.26,127.22,7.24825054]
[1767324376100,4.0475959,127.26,127.21,11.32930047]
[1767324376808,0.05719885,127.25,127.22,0.05066556]
[1767324381601,0.05719885,127.25,127.22,4.13171549]
[1767324381806,0.05719885,127.25,127.22,0.05066556]
[1767324385913,5.43968363,127.24,127.18,11.34559519]
[1767324386311,92.9,127.23,127.18,11.34559519]
[1767324386914,0.05560931,127.22,127.19,0.05516383]
[1767324397124,0.05560931,127.22,127.19,4.15250848]
[1767324397315,1.53964431,127.24,127.19,4.15250848]
[1767324398427,0.05284204,127.23,127.19,4.15250848]
[1767324398726,0.05284204,127.23,127.19,11.36759607]
[1767324398927,96.80003932,127.25,127.2,4.09734465]
[1767324399130,34.61973932,127.29,127.21,4.09734465]
[1767324399428,92.9,127.27,127.22,4.09734465]
[1767324399728,1.53964431,127.28,127.22,4.09734465]
[1767324399941,0.0573357,127.26,127.24,0.05864393]
[1767324402336,3.95737502,127.26,127.21,7.21508759]
[1767324402537,3.95737502,127.26,127.2,11.31243224]
[1767324403423,3.95737502,127.26,127.22,0.05899416]
[1767324405545,1.53964431,127.24,127.2,7.21508759]
[1767324405835,5.43968363,127.24,127.19,4.09734465]
[1767324406337,1.53964431,127.23,127.19,4.09734465]
[1767324406735,0.0567124,127.22,127.2,0.05073231]
[1767324415248,0.0567124,127.22,127.2,4.11051607]
[1767324415641,97.02972197,127.3,127.22,4.05978376]
[1767324415846,98.56936628,127.3,127.24,11.28553369]
[1767324416044,4.12972197,127.29,127.24,11.28553369]
[1767324416351,97.02972197,127.29,127.24,11.28553369]
[1767324416552,0.05398873,127.28,127.25,0.05700122]
[1767324416748,94.43964431,127.31,127.25,4.11678498]
[1767324416949,94.43964431,127.31,127.25,4.05978376]
[1767324417648,92.9,127.31,127.26,4.05978376]
[1767324417851,0.05465405,127.3,127.27,4.11944423]
[1767324420346,0.05465405,127.3,127.27,11.34519416]
[1767324420545,0.05465405,127.3,127.27,4.11944423]
[1767324420752,4.18437602,127.3,127.27,0.05966047]
[1767324420948,5.72402033,127.3,127.27,0.05966047]
[1767324421149,4.12972197,127.27,127.2,4.05978376]
[1767324421759,1.53964431,127.28,127.2,4.05978376]
[1767324422057,0.05241326,127.25,127.23,0.05831026]
[1767324422659,1.51238681,127.25,127.2,4.05978376]
[1767324423457,0.05241326,127.25,127.2,4.05978376]
[1767324423755,0.05241326,127.25,127.21,0.05917575]
[1767324424352,0.05241326,127.25,127.21,4.11895951]
[1767324426263,1.53964431,127.26,127.21,4.11895951]
[1767324427352,0.05359383,127.25,127.21,4.11895951]
[1767324427963,1.53964431,127.24,127.21,4.11895951]
[1767324428456,0.05359383,127.25,127.19,4.05978376]
[1767324428661,1.53964431,127.22,127.19,4.05978376]
[1767324428859,1.53964431,127.22,127.17,13.694117]
[1767324429462,0.05205188,127.21,127.18,0.0544433]
[1767324437266,1.53964431,127.22,127.18,4.11422706]
[1767324437471,1.53964431,127.24,127.18,4.11422706]
[1767324437661,1.53964431,127.24,127.19,4.05978376]
[1767324438462,0.05087968,127.23,127.19,4.05978376]
[1767324440273,0.05087968,127.23,127.19,13.694117]
[1767324440472,0.05087968,127.23,127.2,4.05978376]
[1767324466498,3.15466375,127.23,127.18,0.0544433]
[1767324467799,10.23766375,127.23,127.18,0.0544433]
[1767324469706,10.23766375,127.23,127.18,3.89906387]
[1767324470401,3.15466375,127.23,127.18,3.89906387]
[1767324470606,0.05087968,127.23,127.18,3.89906387]
[1767324471106,0.05087968,127.23,127.19,3.84462057]
[1767324476607,0.05087968,127.23,127.2,9.63433324]
[1767324478012,0.05087968,127.23,127.19,3.84462057]
[1767324478407,0.05087968,127.23,127.19,13.47895381]
[1767324478608,0.05087968,127.23,127.19,3.84462057]
[1767324481106,0.05087968,127.23,127.2,7.24659685]
[1767324482515,0.05087968,127.23,127.19,11.09121742]
[1767324482817,0.05087968,127.23,127.2,7.24659685]
[1767324485014,0.05087968,127.23,127.2,11.40733365]
[1767324485817,0.05087968,127.23,127.19,7.24659685]
[1767324486417,0.05087968,127.23,127.19,11.40733365]
[1767324486923,3.10282836,127.22,127.18,7.30104015]
[1767324487304,7.084,127.21,127.18,0.0544433]
[1767324488015,0.05087968,127.23,127.18,4.2151801]
[1767324488212,0.05087968,127.23,127.18,11.46177695]
[1767324488610,7.13377968,127.23,127.18,11.46177695]
[1767324492419,7.13377968,127.23,127.19,4.1607368]
[1767324497218,7.13377968,127.23,127.19,11.40733365]
[1767324501429,7.13377968,127.23,127.19,11.40374604]
[1767324511128,10.18644731,127.22,127.19,7.24300924]
[1767324511330,10.18644731,127.22,127.18,7.29745254]
[1767324517640,10.18644731,127.22,127.18,11.32128007]
[1767324518444,7.0841,127.21,127.18,7.29745254]
[1767324518639,7.0841,127.21,127.18,0.0544433]
[1767324531650,3.10294731,127.22,127.18,7.29745254]
[1767324536355,3.10294731,127.22,127.19,7.24300924]
[1767324536554,0.05087968,127.23,127.2,7.24300924]
[1767324538961,0.05087968,127.23,127.2,11.38319222]
[1767324541263,96.02261782,127.26,127.21,11.38319222]
[1767324541467,92.92,127.26,127.22,4.14018298]
[1767324541762,3.1534975,127.28,127.23,11.38319222]
[1767324542160,96.0734975,127.28,127.23,11.38319222]
[1767324542354,3.1534975,127.27,127.23,11.38319222]
[1767324542560,0.05073716,127.26,127.24,0.05389564]
[1767324542759,3.1534975,127.24,127.2,9.63433324]
[1767324542961,3.1534975,127.24,127.19,4.14018298]
[1767324543165,3.1534975,127.24,127.17,5.68028086]
[1767324543364,3.1534975,127.23,127.17,5.68028086]
[1767324543769,0.05025757,127.21,127.19,0.0497161]
[1767324544366,3.20375507,127.21,127.15,13.77451622]
[1767324544577,3.1534975,127.2,127.15,4.14018298]
[1767324545068,0.05025757,127.21,127.15,4.14018298]
[1767324545266,0.05025757,127.21,127.16,4.14018298]
[1767324545462,0.05025757,127.21,127.17,0.05103479]
[1767324546072,0.05025757,127.21,127.17,4.19121777]
[1767324553466,1.54009788,127.24,127.19,4.14018298]
[1767324554376,0.05669052,127.23,127.2,0.05464076]
[1767324567183,0.05669052,127.23,127.2,4.23335076]
[1767324583404,99.9815,127.26,127.2,4.23335076]
[1767324583709,103.24112431,127.26,127.2,4.23335076]
[1767324584508,0.05532059,127.24,127.2,4.23335076]
[1767324594203,7.13782059,127.24,127.2,4.23335076]
[1767324601509,0.05532059,127.24,127.2,4.23335076]
[1767324601709,2.40681091,127.29,127.23,3.97648703]
[1767324601909,2.40681091,127.3,127.24,3.97648703]
[1767324602305,5.72786643,127.3,127.24,3.97648703]
[1767324602719,0.05329703,127.28,127.26,0.05740257]
[1767324603800,92.9,127.3,127.26,4.0338896]
[1767324604011,2.40681091,127.37,127.29,3.97648703]
[1767324604314,5.78116346,127.39,127.32,3.97648703]
[1767324605007,0.05718722,127.37,127.34,0.05374658]
[1767324605209,9.53929813,127.37,127.32,3.97648703]
[1767324605604,12.91365068,127.37,127.32,3.97648703]
[1767324606419,12.91365068,127.37,127.27,7.24067725]
[1767324606618,12.85646346,127.37,127.28,7.24067725]
[1767324607214,12.85646346,127.37,127.27,7.24067725]
[1767324607519,0.05570223,127.33,127.31,0.05571387]
[1767324608310,0.05570223,127.33,127.31,4.0322009]
[1767324608509,92.9,127.38,127.31,4.0322009]
[1767324608907,13.49927316,127.39,127.31,4.0322009]
[1767324609111,13.49927316,127.39,127.31,3.97648703]
[1767324609310,11.09246225,127.39,127.31,3.97648703]
[1767324609511,2.40681091,127.4,127.29,9.48591091]
[1767324609512,106.37797316,127.41,127.35,3.97648703]
[1767324610514,0.0567912,127.39,127.37,0.05229706]
[1767324613224,0.0567912,127.39,127.35,3.97648703]
[1767324614124,0.0567912,127.39,127.36,4.03255841]
[1767324614721,2.40681091,127.43,127.36,4.03255841]
[1767324614926,2.40681091,127.41,127.36,4.03255841]
[1767324615228,4.01826225,127.4,127.36,0.05607138]
[1767324615419,4.01826225,127.42,127.36,0.05607138]
[1767324615625,0.06019197,127.4,127.36,0.05607138]
[1767324617027,0.06019197,127.4,127.36,4.03255841]
[1767324620023,4.01826225,127.43,127.36,4.03255841]
[1767324620229,2.40681091,127.42,127.36,4.03255841]
[1767324620429,6.42507316,127.42,127.36,4.03255841]
[1767324620930,0.05146168,127.4,127.36,4.03255841]
[1767324621630,13.55013484,127.4,127.34,3.97648703]
[1767324621827,4.01826225,127.39,127.29,3.97648703]
[1767324622130,2.40681091,127.38,127.29,3.97648703]
[1767324622326,2.40681091,127.36,127.29,3.97648703]
[1767324622747,0.05558343,127.34,127.31,4.02731644]
[1767324624234,2.40681091,127.38,127.31,4.02731644]
[1767324624530,1.53668653,127.38,127.31,4.02731644]
[1767324625235,0.05298901,127.36,127.31,4.02731644]
[1767324625427,1.53668653,127.38,127.31,4.02731644]
[1767324626835,11.18367499,127.42,127.33,3.94192212]
[1767324627036,1.53668653,127.39,127.33,3.94192212]
[1767324627520,1.53668653,127.39,127.35,3.99736048]
[1767324628533,0.05227028,127.38,127.35,3.99736048]
[1767324637242,0.05227028,127.38,127.35,0.05543836]
[1767324637432,1.53668653,127.37,127.33,11.01902212]
[1767324638544,1.53668653,127.37,127.34,0.05911592]
[1767324639334,1.53668653,127.35,127.31,11.02002212]
[1767324639532,1.53668653,127.35,127.32,3.94192212]
[1767324640244,1.59708968,127.35,127.32,3.99874702]
[1767324643535,0.06040315,127.35,127.32,3.99874702]
[1767324643842,1.53668653,127.36,127.32,3.99874702]
[1767324644351,4.11137499,127.39,127.32,3.99874702]
[1767324644535,1.53668653,127.37,127.32,3.94192212]
[1767324644847,0.05015279,127.36,127.33,0.05355751]
[1767324646045,0.05015279,127.36,127.33,3.99547963]
[1767324647746,1.53668653,127.39,127.34,3.94192212]
[1767324648245,1.53668653,127.39,127.35,3.94192212]
[1767324648654,0.05287553,127.38,127.36,0.05377501]
[1767324650451,1.53668653,127.4,127.36,3.99569713]
[1767324651538,0.05418436,127.39,127.36,3.99569713]
[1767324652145,0.05418436,127.39,127.36,11.07109713]
[1767324652950,0.05418436,127.39,127.36,18.18486287]
[1767324653755,0.05418436,127.39,127.36,7.16754075]
[1767324653957,0.05418436,127.39,127.36,0.05377501]
[1767324657149,0.05418436,127.39,127.36,7.16754075]
[1767324657658,0.05418436,127.39,127.36,0.05377501]
[1767324660460,0.05418436,127.39,127.36,7.16754075]
[1767324663758,0.05418436,127.39,127.36,0.05377501]
[1767324666261,4.07121796,127.39,127.36,0.05377501]
[1767324666466,5.55372013,127.38,127.34,7.11376574]
[1767324667558,5.55372013,127.38,127.35,0.05324678]
[1767324672269,0.05418436,127.39,127.35,3.98474301]
[1767324672464,0.05418436,127.39,127.35,11.09850875]
[1767324677463,1.59087089,127.39,127.35,11.09850875]
[1767324677669,5.55372013,127.37,127.34,7.11376574]
[1767324677979,5.55372013,127.37,127.32,7.11376574]
[1767324678181,4.0170336,127.37,127.32,7.11376574]
[1767324678477,5.55372013,127.37,127.32,7.11376574]
[1767324678777,0.0575395,127.36,127.33,0.05016917]
[1767324681887,4.0745731,127.36,127.33,0.05016917]
[1767324683073,4.0170336,127.34,127.31,1.6863842]
[1767324683273,1.53668653,127.33,127.28,22.85645911]
[1767324684082,0.05533454,127.32,127.29,3.83438785]
[1767324684674,3.82799026,127.36,127.3,3.77458273]
[1767324685778,0.05741649,127.34,127.32,0.05858498]
[1767324685981,106.1053661,127.38,127.32,3.83316771]
[1767324686383,96.62799026,127.38,127.32,3.83316771]
[1767324686985,0.05509823,127.36,127.32,3.83316771]
[1767324689580,0.05509823,127.36,127.32,0.05858498]
[1767324689581,3.88308849,127.36,127.32,0.05858498]
[1767324693382,10.95878849,127.36,127.32,0.05858498]
[1767324693881,3.82799026,127.35,127.32,0.05858498]
[1767324699793,3.82799026,127.35,127.28,13.06521237]
[1767324700891,0.05309376,127.33,127.3,0.05866691]
[1767324703496,0.05309376,127.33,127.3,3.83324964]
[1767324703798,10.90429026,127.35,127.3,3.83324964]
[1767324704690,0.05018275,127.34,127.3,3.83324964]
[1767324713095,3.87817301,127.34,127.3,0.05866691]
[1767324714104,96.69817301,127.34,127.3,0.05866691]
[1767324718097,3.87817301,127.34,127.3,0.05866691]
[1767324718296,92.82,127.33,127.3,0.05866691]
[1767324720413,4.04228943,127.31,127.24,13.50114295]
[1767324720613,92.82,127.3,127.24,3.86680971]
[1767324721206,92.82,127.3,127.24,13.50114295]
[1767324721404,0.05834003,127.28,127.26,0.04977192]
[1767324721907,0.05834003,127.28,127.22,9.63433324]
[1767324721908,0.05834003,127.28,127.22,3.86680971]
[1767324722611,0.05834003,127.28,127.24,3.86680971]
[1767324722813,0.05834003,127.28,127.25,0.0520552]
[1767324729026,0.05834003,127.28,127.25,3.91886491]
[1767324732018,0.05834003,127.28,127.25,0.0520552]
[1767324732019,4.10062946,127.28,127.25,0.0520552]
[1767324732620,4.10062946,127.28,127.21,3.86680971]
[1767324732821,92.86,127.27,127.21,3.86680971]
[1767324733122,96.90228943,127.27,127.21,3.86680971]
[1767324733720,0.05584815,127.25,127.23,0.05551221]
[1767324737212,4.04228943,127.29,127.23,3.92232192]
[1767324737522,11.12098943,127.31,127.23,3.92232192]
[1767324737720,11.12098943,127.31,127.21,12.03690908]
[1767324737721,96.90228943,127.31,127.25,3.86680971]
[1767324737920,4.04228943,127.33,127.25,3.86680971]
[1767324738120,2.40257584,127.34,127.26,3.86680971]
[1767324738121,92.86,127.34,127.26,3.86680971]
[1767324738321,0.05956432,127.31,127.29,0.06003363]
[1767324740716,0.05956432,127.31,127.25,3.86680971]
[1767324741131,92.91956432,127.31,127.25,3.86680971]
[1767324741331,96.96185375,127.31,127.25,3.86680971]
[1767324741630,4.04228943,127.3,127.23,10.94910971]
[1767324741830,0.05936197,127.28,127.25,0.05051544]
[1767324746134,92.86,127.31,127.25,3.84927153]
[1767324746733,1.53839353,127.32,127.25,3.84927153]
[1767324746933,92.86,127.31,127.25,3.79875609]
[1767324747130,0.05506263,127.29,127.27,0.0547307]
[1767324748625,4.1829407,127.29,127.23,3.79875609]
[1767324748826,5.6662716,127.28,127.23,3.79875609]
[1767324749023,4.12787807,127.27,127.2,18.08468564]
[1767324749227,92.91506263,127.29,127.16,9.63433324]
[1767324749228,1.53839353,127.22,127.16,9.63433324]
[1767324749525,1.53839353,127.22,127.15,13.43308933]
[1767324749724,0.05024587,127.2,127.17,0.05081465]
[1767324752125,5.6662716,127.23,127.17,0.05081465]
[1767324753238,0.05793941,127.21,127.17,0.05081465]
[1767324754641,0.05793941,127.21,127.17,7.26233176]
[1767324755941,0.05793941,127.21,127.17,0.05081465]
[1767324759145,4.18581748,127.21,127.17,0.05081465]
[1767324759647,5.72421101,127.21,127.17,0.05081465]
[1767324761031,0.05793941,127.21,127.17,0.05081465]
[1767324761743,0.05793941,127.21,127.17,3.84957074]
[1767324763850,0.05793941,127.21,127.17,10.93547074]
[1767324764347,1.53839353,127.23,127.18,3.79875609]
[1767324764653,4.12787807,127.25,127.18,3.79875609]
[1767324764848,1.53839353,127.24,127.18,3.79875609]
[1767324765053,99.9814,127.26,127.2,3.79875609]
[1767324765054,1.53839353,127.26,127.2,3.79875609]
[1767324765460,0.05774441,127.24,127.22,0.0520537]
[1767324766059,0.0310503,127.24,127.22,0.0520537]
[1767324769474,5.6662716,127.28,127.22,0.0520537]
[1767324770467,0.05066693,127.26,127.22,0.0520537]
[1767324771468,1.53839353,127.25,127.22,0.0520537]
[1767324772671,5.6662716,127.25,127.22,0.0520537]
[1767324772970,4.12787807,127.24,127.18,14.29681711]
[1767324773777,0.0549684,127.22,127.2,0.05840814]
[1767324774864,1.53839353,127.25,127.2,0.05840814]
[1767324775067,1.53839353,127.25,127.2,7.26992525]
[1767324775972,0.05947086,127.24,127.2,11.31864416]
[1767324779979,0.05947086,127.24,127.2,18.40294416]
[1767324780468,0.05947086,127.24,127.21,4.04871891]
[1767324780771,0.05947086,127.24,127.21,18.34393602]
[1767324781178,5.73026753,127.28,127.22,4.04871891]
[1767324781374,5.73026753,127.28,127.22,11.13181891]
[1767324781875,5.73026753,127.28,127.22,18.34333602]
[1767324782377,0.05179854,127.26,127.24,0.05825365]
[1767324786572,0.05179854,127.26,127.22,7.21151711]
[1767324786573,1.59019207,127.26,127.22,7.21151711]
[1767324786766,1.59019207,127.26,127.2,18.34443602]
[1767324786966,1.59019207,127.26,127.21,7.21151711]
[1767324787679,1.59019207,127.26,127.22,0.05742449]
[1767324790274,5.78206607,127.26,127.22,0.05742449]
[1767324793674,5.73026753,127.3,127.22,4.1061434]
[1767324793867,5.73026753,127.3,127.23,11.26023602]
[1767324794573,5.73026753,127.3,127.23,4.04871891]
[1767324794890,0.05676118,127.28,127.25,0.0526749]
[1767324798472,5.78702871,127.28,127.25,0.0526749]
[1767324800281,0.05676118,127.28,127.25,0.0526749]
[1767324802476,0.05676118,127.28,127.25,7.1341749]
[1767324803778,0.05676118,127.28,127.25,14.34569201]
[1767324803973,0.05676118,127.28,127.25,18.52918761]
[1767324804482,1.53839353,127.31,127.26,18.18859111]
[1767324805277,3.88072877,127.32,127.26,18.18859111]
[1767324805474,0.05985126,127.3,127.28,0.05262955]
[1767324811288,3.79790396,127.38,127.29,3.896074]
[1767324811492,3.79790396,127.38,127.32,3.896074]
[1767324811785,3.79790396,127.4,127.34,7.0765]
[1767324812379,0.05002649,127.38,127.36,0.05176414]
[1767324823090,3.84793045,127.38,127.29,3.896074]
[1767324823297,3.79790396,127.38,127.29,3.896074]
[1767324824089,0.05660307,127.35,127.32,0.05915512]
[1767324824597,3.79790396,127.41,127.32,3.95522912]
[1767324824785,3.79790396,127.41,127.32,3.896074]
[1767324824980,3.79790396,127.41,127.34,3.896074]
[1767324825692,0.05515216,127.39,127.36,0.05527865]
[1767324827794,0.05515216,127.39,127.36,3.95135265]
[1767324842404,4.10883731,127.45,127.38,11.21492076]
[1767324842610,4.10883731,127.45,127.39,4.14072076]
[1767324843614,4.10883731,127.45,127.41,0.04949778]
[1767324845008,4.10883731,127.43,127.37,4.14072076]
[1767324845599,2.40328043,127.44,127.33,11.99426775]
[1767324845600,6.51211774,127.45,127.38,4.14072076]
[1767324845814,4.10883731,127.45,127.38,4.14072076]
[1767324846012,0.05231828,127.43,127.4,0.04973393]
[1767324847013,4.10883731,127.47,127.4,4.19045469]
[1767324848120,4.10883731,127.47,127.41,4.14072076]
[1767324848323,4.10883731,127.47,127.43,0.05911683]
[1767324855625,6.51211774,127.47,127.43,0.05911683]
[1767324857833,4.10883731,127.47,127.43,0.05911683]
[1767324858015,6.51211774,127.49,127.43,4.19983759]
[1767324858327,4.10883731,127.48,127.43,4.19983759]
[1767324858521,4.10883731,127.48,127.43,0.05911683]
[1767324865024,2.40328043,127.44,127.38,4.03817121]
[1767324865224,4.171654,127.43,127.35,4.03817121]
[1767324865723,4.171654,127.43,127.36,11.11347121]
[1767324866121,0.05338346,127.41,127.38,0.05446483]
[1767324866519,1.53625578,127.4,127.36,11.11347121]
[1767324867631,1.53625578,127.4,127.37,0.05898288]
[1767324868825,1.53625578,127.4,127.34,11.11447121]
[1767324869228,4.171654,127.37,127.3,4.03817121]
[1767324869519,1.53625578,127.37,127.3,4.03817121]
[1767324870026,0.05979352,127.35,127.32,4.09825328]
[1767324870427,1.53625578,127.39,127.32,4.09825328]
[1767324870625,1.53625578,127.39,127.32,4.03817121]
[1767324870825,4.171654,127.4,127.32,4.03817121]
[1767324871028,1.53625578,127.39,127.32,4.03817121]
[1767324871426,0.05811601,127.37,127.34,0.05609258]
[1767324873637,1.59437179,127.37,127.34,0.05609258]
[1767324876225,5.76602579,127.37,127.34,0.05609258]
[1767324877333,4.22977001,127.37,127.34,0.05609258]
[1767324877633,0.05811601,127.37,127.34,0.05609258]
[1767324883039,1.53625578,127.36,127.31,4.03817121]
[1767324883239,5.70790978,127.36,127.31,4.03817121]
[1767324884036,5.70790978,127.36,127.32,0.05180733]
[1767324892747,4.171654,127.36,127.32,0.05180733]
[1767324896140,0.05811601,127.37,127.32,3.93168019]
[1767324897847,3.98028951,127.37,127.32,3.93168019]
[1767324899748,3.98028951,127.37,127.32,11.00938019]
[1767324901355,0.05811601,127.37,127.34,3.87987286]
[1767324902148,0.05811601,127.37,127.34,10.95627286]
[1767324902746,0.05811601,127.37,127.33,7.19776015]
[1767324902954,0.05811601,127.37,127.32,19.74319612]
[1767324903255,3.98028951,127.37,127.32,19.74319612]
[1767324905359,3.98028951,127.37,127.33,7.19776015]
[1767324905541,3.98028951,127.37,127.32,14.32706748]
[1767324906550,3.98028951,127.37,127.32,7.24956748]
[1767324906751,3.98028951,127.37,127.32,0.05180733]
[1767324907354,3.98028951,127.37,127.32,7.24956748]
[1767324908767,3.9221735,127.35,127.32,7.24956748]
[1767324908961,3.9221735,127.35,127.32,0.05180733]
[1767324911264,3.9221735,127.35,127.32,7.24956748]
[1767324913063,0.05811601,127.37,127.34,1.53625578]
[1767324913265,0.05811601,127.37,127.34,8.73401593]
[1767324914958,3.9221735,127.39,127.34,8.73401593]
[1767324915769,3.9221735,127.39,127.34,8.78518583]
[1767324915970,0.0544679,127.38,127.35,0.05442956]
[1767324916370,0.0544679,127.38,127.35,7.30335961]
[1767324917068,3.9766414,127.38,127.35,0.05442956]
[1767324919776,3.9766414,127.38,127.35,7.30335961]
[1767324921976,7.1291679,127.38,127.35,1.82484254]
[1767324922177,7.1291679,127.38,127.32,11.1272431]
[1767324922178,1.13358,127.37,127.32,11.1272431]
[1767324922376,1.13358,127.37,127.32,1.53625578]
[1767324923172,1.13358,127.37,127.33,0.05091584]
[1767324930093,0.0544679,127.38,127.33,0.05091584]
[1767324930392,0.0544679,127.38,127.33,3.9413509]
[1767324931297,0.0544679,127.38,127.33,13.53233822]
[1767324931497,0.0544679,127.38,127.33,20.60933822]
[1767324934301,0.0544679,127.38,127.34,9.59098732]
[1767324936995,0.0544679,127.38,127.33,20.60933822]
[1767324937195,0.0544679,127.38,127.33,13.53233822]
[1767324939506,0.0544679,127.38,127.33,9.64190316]
[1767324939705,0.0544679,127.38,127.33,0.05091584]
[1767324942114,0.0544679,127.38,127.33,3.9413509]
[1767324943514,0.0544679,127.38,127.33,13.53233822]
[1767324947008,0.0544679,127.38,127.34,3.89043506]
[1767324947310,0.0544679,127.38,127.34,13.48142238]
[1767324949518,7.1265438,127.42,127.35,3.89043506]
[1767324949823,0.0538438,127.42,127.35,13.48142238]
[1767324950622,0.05630154,127.4,127.37,0.05242344]
[1767324963642,0.05451984,127.44,127.37,4.20061112]
[1767324963939,0.05451984,127.44,127.37,4.14818768]
[1767324964439,0.05440771,127.42,127.39,4.20208185]